[Event "Titled Tuesday Blitz August 23 Late 2022"]
[White "Mathieu, Phileas"]
[Black "Schmakel, Sam"]
[WhiteFideId "36048410"]
[BlackFideId "2039311"]
[WhiteElo "2138"]
[BlackElo "2356"]
[Result "1/2-1/2"]
[Round "06"]
[TimeControl "180+1"]
[Date "2022.08.23"]
[WhiteClock "0:00:01"]
[BlackClock "0:00:05"]

1. e4 {[%clk 0:03:00]}  g6 {[%clk 0:02:58]} 2. d4 {[%clk 0:03:00]}  Bg7 {[%clk 0:02:58]} 3. Nc3 {[%clk 0:03:00]}  d6 {[%clk 0:02:59]} 4. Be3 {[%clk 0:03:00]}  a6 {[%clk 0:03:00]} 5. a4 {[%clk 0:02:59]}  Nc6 {[%clk 0:02:52]} 6. h3 {[%clk 0:02:57]}  e5 {[%clk 0:02:48]} 7. Nf3 {[%clk 0:02:56]}  exd4 {[%clk 0:02:41]} 8. Nxd4 {[%clk 0:02:57]}  Nf6 {[%clk 0:02:42]} 9. Nxc6 {[%clk 0:02:47]}  bxc6 {[%clk 0:02:42]} 10. Bd3 {[%clk 0:02:47]}  Rb8 {[%clk 0:02:34]} 11. Rb1 {[%clk 0:02:44]}  Nd7 {[%clk 0:02:26]} 12. O-O {[%clk 0:02:42]}  O-O {[%clk 0:02:27]} 13. Qd2 {[%clk 0:02:38]}  c5 {[%clk 0:02:06]} 14. b3 {[%clk 0:02:31]}  Re8 {[%clk 0:02:02]} 15. Bh6 {[%clk 0:02:27]}  Bb7 {[%clk 0:01:54]} 16. Bxg7 {[%clk 0:02:24]}  Kxg7 {[%clk 0:01:55]} 17. Rbe1 {[%clk 0:02:23]}  Ne5 {[%clk 0:01:50]} 18. f4 {[%clk 0:02:22]}  Nxd3 {[%clk 0:01:50]} 19. Qxd3 {[%clk 0:02:18]}  a5 {[%clk 0:01:46]} 20. f5 {[%clk 0:02:13]}  Bc6 {[%clk 0:01:43]} 21. f6+ {[%clk 0:02:09]}  Kh8 {[%clk 0:01:36]} 22. Qd2 {[%clk 0:02:08]}  Re6 {[%clk 0:01:31]} 23. Nd5 {[%clk 0:01:39]}  Ra8 {[%clk 0:00:56]} 24. Ne7 {[%clk 0:00:52]}  Bxe4 {[%clk 0:00:51]} 25. Rf4 {[%clk 0:00:42]}  d5 {[%clk 0:00:44]} 26. Rh4 {[%clk 0:00:33]}  Qf8 {[%clk 0:00:43]} 27. Qg5 {[%clk 0:00:18]}  Raa6 {[%clk 0:00:29]} 28. Rf1 {[%clk 0:00:11]}  Bxc2 {[%clk 0:00:27]} 29. Rh6 {[%clk 0:00:11]}  Rxf6 {[%clk 0:00:16]} 30. Rxf6 {[%clk 0:00:05]}  Qxe7 {[%clk 0:00:17]} 31. Rxh7+ {[%clk 0:00:04]}  Kxh7 {[%clk 0:00:15]} 32. Qh4+ {[%clk 0:00:04]}  Kg8 {[%clk 0:00:16]} 33. Rxg6+ {[%clk 0:00:04]}  Kf8 {[%clk 0:00:16]} 34. Rg8+ {[%clk 0:00:04]}  Kxg8 {[%clk 0:00:17]} 35. Qxe7 {[%clk 0:00:04]}  d4 {[%clk 0:00:16]} 36. Qxc7 {[%clk 0:00:02]}  Re6 {[%clk 0:00:14]} 37. Qxc5 {[%clk 0:00:02]}  d3 {[%clk 0:00:14]} 38. Kh2 {[%clk 0:00:02]}  Bxb3 {[%clk 0:00:10]} 39. Qxa5 {[%clk 0:00:02]}  Rd6 {[%clk 0:00:04]} 40. Qg5+ {[%clk 0:00:03]}  Rg6 {[%clk 0:00:05]} 41. Qd2 {[%clk 0:00:03]}  Bd5 {[%clk 0:00:06]} 42. g4 {[%clk 0:00:02]}  Bc4 {[%clk 0:00:06]} 43. Kg3 {[%clk 0:00:03]}  Re6 {[%clk 0:00:05]} 44. a5 {[%clk 0:00:03]}  Re2 {[%clk 0:00:04]} 45. Qg5+ {[%clk 0:00:04]}  Kh7 {[%clk 0:00:04]} 46. Qh5+ {[%clk 0:00:04]}  Kg7 {[%clk 0:00:04]} 47. Qg5+ {[%clk 0:00:05]}  Kh7 {[%clk 0:00:05]} 48. Qf5+ {[%clk 0:00:05]}  Kg7 {[%clk 0:00:05]} 49. Qg5+ {[%clk 0:00:01]}  Kh7 {[%clk 0:00:05]} 1/2-1/2


[Site "https://www.chess.com"]

[Event "Titled Tuesday Blitz August 23 Late 2022"]
[White "Mcconnell, Sullivan"]
[Black "Maksimovic, Bojan"]
[WhiteFideId "30934885"]
[BlackFideId "14408120"]
[WhiteElo "2596"]
[BlackElo "2447"]
[Result "0-1"]
[Round "06"]
[TimeControl "180+1"]
[Date "2022.08.23"]
[WhiteClock "0:00:34"]
[BlackClock "0:00:17"]

1. e4 {[%clk 0:03:00]}  e5 {[%clk 0:03:00]} 2. Nf3 {[%clk 0:03:01]}  Nc6 {[%clk 0:03:00]} 3. Bb5 {[%clk 0:03:01]}  a6 {[%clk 0:03:00]} 4. Ba4 {[%clk 0:03:01]}  Nf6 {[%clk 0:03:00]} 5. O-O {[%clk 0:03:02]}  Be7 {[%clk 0:03:01]} 6. Re1 {[%clk 0:03:01]}  b5 {[%clk 0:03:00]} 7. Bb3 {[%clk 0:03:02]}  d6 {[%clk 0:03:00]} 8. h3 {[%clk 0:03:02]}  Na5 {[%clk 0:02:59]} 9. d4 {[%clk 0:03:01]}  Nxb3 {[%clk 0:02:53]} 10. axb3 {[%clk 0:03:01]}  Nd7 {[%clk 0:02:31]} 11. dxe5 {[%clk 0:03:00]}  Nxe5 {[%clk 0:02:31]} 12. Nxe5 {[%clk 0:02:56]}  dxe5 {[%clk 0:02:32]} 13. Qxd8+ {[%clk 0:02:56]}  Bxd8 {[%clk 0:02:32]} 14. Nc3 {[%clk 0:02:57]}  Bb7 {[%clk 0:02:31]} 15. Be3 {[%clk 0:02:54]}  Be7 {[%clk 0:02:25]} 16. f3 {[%clk 0:02:50]}  c6 {[%clk 0:02:21]} 17. Red1 {[%clk 0:02:47]}  f6 {[%clk 0:02:20]} 18. Ne2 {[%clk 0:02:40]}  Rd8 {[%clk 0:02:17]} 19. Rxd8+ {[%clk 0:02:35]}  Kxd8 {[%clk 0:02:17]} 20. Bb6+ {[%clk 0:02:35]}  Ke8 {[%clk 0:02:17]} 21. c3 {[%clk 0:02:31]}  c5 {[%clk 0:01:55]} 22. Rd1 {[%clk 0:02:30]}  Bc8 {[%clk 0:01:55]} 23. Ba5 {[%clk 0:02:25]}  Kf7 {[%clk 0:01:51]} 24. Kf2 {[%clk 0:02:18]}  Be6 {[%clk 0:01:47]} 25. b4 {[%clk 0:02:15]}  h5 {[%clk 0:01:45]} 26. bxc5 {[%clk 0:01:59]}  Bxc5+ {[%clk 0:01:46]} 27. Ke1 {[%clk 0:01:57]}  Rc8 {[%clk 0:01:46]} 28. Ng3 {[%clk 0:01:52]}  g6 {[%clk 0:01:45]} 29. Nf1 {[%clk 0:01:51]}  f5 {[%clk 0:01:41]} 30. Nd2 {[%clk 0:01:42]}  Kf6 {[%clk 0:01:24]} 31. Nf1 {[%clk 0:01:37]}  Kg5 {[%clk 0:00:56]} 32. Bd8+ {[%clk 0:01:26]}  Kh6 {[%clk 0:00:36]} 33. Bf6 {[%clk 0:01:19]}  fxe4 {[%clk 0:00:37]} 34. fxe4 {[%clk 0:01:18]}  Re8 {[%clk 0:00:37]} 35. b4 {[%clk 0:01:10]}  Bf8 {[%clk 0:00:32]} 36. Nd2 {[%clk 0:01:06]}  g5 {[%clk 0:00:28]} 37. Nf3 {[%clk 0:01:06]}  g4 {[%clk 0:00:29]} 38. hxg4 {[%clk 0:00:58]}  Bxg4 {[%clk 0:00:30]} 39. Ra1 {[%clk 0:00:57]}  Re6 {[%clk 0:00:27]} 40. Bh4 {[%clk 0:00:53]}  Kg6 {[%clk 0:00:17]} 41. Bg3 {[%clk 0:00:44]}  Bxf3 {[%clk 0:00:17]} 42. gxf3 {[%clk 0:00:45]}  Be7 {[%clk 0:00:17]} 43. Ke2 {[%clk 0:00:45]}  h4 {[%clk 0:00:17]} 44. Bf2 {[%clk 0:00:45]}  Rc6 {[%clk 0:00:17]} 45. Be3 {[%clk 0:00:44]}  Kh5 {[%clk 0:00:15]} 46. Bd2 {[%clk 0:00:43]}  Bg5 {[%clk 0:00:14]} 47. Bxg5 {[%clk 0:00:39]}  Kxg5 {[%clk 0:00:15]} 48. Rg1+ {[%clk 0:00:40]}  Kh5 {[%clk 0:00:16]} 49. Kd3 {[%clk 0:00:40]}  h3 {[%clk 0:00:16]} 50. Rg8 {[%clk 0:00:34]}  h2 {[%clk 0:00:16]} 51. Rh8+ {[%clk 0:00:34]}  Rh6 {[%clk 0:00:17]} 0-1


[Site "https://www.chess.com"]

[Event "Titled Tuesday Blitz August 23 Late 2022"]
[White "Moroni, Luca Jr"]
[Black "Jaracz, Pawel"]
[WhiteFideId "865834"]
[BlackFideId "1102222"]
[WhiteElo "2573"]
[BlackElo "2459"]
[Result "1-0"]
[Round "06"]
[TimeControl "180+1"]
[Date "2022.08.23"]
[WhiteClock "0:00:20"]
[BlackClock "0:00:06"]

1. d4 {[%clk 0:03:00]}  Nf6 {[%clk 0:02:59]} 2. Bf4 {[%clk 0:03:00]}  d5 {[%clk 0:02:56]} 3. e3 {[%clk 0:03:00]}  e6 {[%clk 0:02:55]} 4. Nf3 {[%clk 0:03:00]}  c5 {[%clk 0:02:55]} 5. Nbd2 {[%clk 0:03:00]}  Nc6 {[%clk 0:02:55]} 6. c3 {[%clk 0:03:00]}  Be7 {[%clk 0:02:54]} 7. h3 {[%clk 0:02:57]}  Bd6 {[%clk 0:02:54]} 8. dxc5 {[%clk 0:02:40]}  Bxc5 {[%clk 0:02:53]} 9. Bd3 {[%clk 0:02:40]}  O-O {[%clk 0:02:52]} 10. O-O {[%clk 0:02:39]}  Bd6 {[%clk 0:02:51]} 11. Bxd6 {[%clk 0:02:36]}  Qxd6 {[%clk 0:02:51]} 12. e4 {[%clk 0:02:36]}  Rd8 {[%clk 0:02:23]} 13. Qe2 {[%clk 0:02:17]}  dxe4 {[%clk 0:02:22]} 14. Bxe4 {[%clk 0:02:18]}  Nxe4 {[%clk 0:02:15]} 15. Nxe4 {[%clk 0:02:19]}  Qc7 {[%clk 0:02:11]} 16. Rad1 {[%clk 0:02:17]}  e5 {[%clk 0:01:25]} 17. Rxd8+ {[%clk 0:02:13]}  Qxd8 {[%clk 0:01:23]} 18. Rd1 {[%clk 0:02:13]}  Qe7 {[%clk 0:01:23]} 19. Nd6 {[%clk 0:02:06]}  f6 {[%clk 0:01:03]} 20. Qb5 {[%clk 0:01:27]}  Be6 {[%clk 0:01:03]} 21. c4 {[%clk 0:01:10]}  Rd8 {[%clk 0:00:56]} 22. c5 {[%clk 0:01:10]}  g6 {[%clk 0:00:27]} 23. b3 {[%clk 0:01:07]}  Kg7 {[%clk 0:00:27]} 24. Rd2 {[%clk 0:00:53]}  e4 {[%clk 0:00:14]} 25. Nxe4 {[%clk 0:00:52]}  Rxd2 {[%clk 0:00:11]} 26. Nexd2 {[%clk 0:00:53]}  Bd5 {[%clk 0:00:11]} 27. a3 {[%clk 0:00:37]}  g5 {[%clk 0:00:10]} 28. b4 {[%clk 0:00:36]}  h5 {[%clk 0:00:10]} 29. Qd3 {[%clk 0:00:36]}  Qe6 {[%clk 0:00:10]} 30. Qe3 {[%clk 0:00:29]}  Qf5 {[%clk 0:00:06]} 31. Nd4 {[%clk 0:00:24]}  Nxd4 {[%clk 0:00:06]} 32. Qxd4 {[%clk 0:00:25]}  Qe6 {[%clk 0:00:06]} 33. Nf1 {[%clk 0:00:20]} 1-0


[Site "https://www.chess.com"]

[Event "Titled Tuesday Blitz August 23 Late 2022"]
[White "Nazaretyan, Tigran"]
[Black "Chigaev, Maksim"]
[WhiteFideId "24162345"]
[BlackFideId "4108116"]
[WhiteElo "2183"]
[BlackElo "2487"]
[Result "0-1"]
[Round "06"]
[TimeControl "180+1"]
[Date "2022.08.23"]
[WhiteClock "0:00:01"]
[BlackClock "0:01:11"]

1. d4 {[%clk 0:02:37]}  Nf6 {[%clk 0:02:59]} 2. c3 {[%clk 0:02:37]}  g6 {[%clk 0:02:59]} 3. Bf4 {[%clk 0:02:37]}  Bg7 {[%clk 0:02:59]} 4. e3 {[%clk 0:02:37]}  O-O {[%clk 0:03:00]} 5. Nf3 {[%clk 0:02:37]}  d6 {[%clk 0:03:00]} 6. h3 {[%clk 0:02:37]}  c5 {[%clk 0:02:59]} 7. Nbd2 {[%clk 0:02:36]}  cxd4 {[%clk 0:02:51]} 8. exd4 {[%clk 0:02:35]}  Nc6 {[%clk 0:02:52]} 9. Be2 {[%clk 0:02:34]}  e5 {[%clk 0:02:52]} 10. dxe5 {[%clk 0:02:23]}  dxe5 {[%clk 0:02:53]} 11. Nxe5 {[%clk 0:02:22]}  Nd5 {[%clk 0:02:54]} 12. Nxc6 {[%clk 0:02:20]}  bxc6 {[%clk 0:02:54]} 13. Bg3 {[%clk 0:02:20]}  Re8 {[%clk 0:02:55]} 14. O-O {[%clk 0:02:18]}  Bxc3 {[%clk 0:02:55]} 15. Nc4 {[%clk 0:02:05]}  Bxb2 {[%clk 0:02:56]} 16. Nxb2 {[%clk 0:01:49]}  Nc3 {[%clk 0:02:56]} 17. Qxd8 {[%clk 0:01:48]}  Nxe2+ {[%clk 0:02:56]} 18. Kh2 {[%clk 0:01:47]}  Rxd8 {[%clk 0:02:56]} 19. Bh4 {[%clk 0:01:42]}  Re8 {[%clk 0:02:44]} 20. Rfe1 {[%clk 0:01:39]}  h6 {[%clk 0:02:30]} 21. Nd3 {[%clk 0:01:33]}  g5 {[%clk 0:02:21]} 22. Bg3 {[%clk 0:01:30]}  Bf5 {[%clk 0:02:21]} 23. Nb4 {[%clk 0:01:25]}  Rac8 {[%clk 0:02:06]} 24. Rad1 {[%clk 0:01:11]}  a5 {[%clk 0:01:56]} 25. Na6 {[%clk 0:01:03]}  Nxg3 {[%clk 0:01:52]} 26. Kxg3 {[%clk 0:01:01]}  Rxe1 {[%clk 0:01:48]} 27. Rxe1 {[%clk 0:01:01]}  Be6 {[%clk 0:01:48]} 28. a3 {[%clk 0:00:57]}  c5 {[%clk 0:01:45]} 29. Re5 {[%clk 0:00:57]}  c4 {[%clk 0:01:46]} 30. Rxa5 {[%clk 0:00:57]}  c3 {[%clk 0:01:45]} 31. Rc5 {[%clk 0:00:54]}  c2 {[%clk 0:01:43]} 32. Nc7 {[%clk 0:00:51]}  Bb3 {[%clk 0:01:23]} 33. Kf3 {[%clk 0:00:40]}  Rd8 {[%clk 0:01:22]} 34. Nb5 {[%clk 0:00:15]}  Rd1 {[%clk 0:01:13]} 35. Nd4 {[%clk 0:00:03]}  Rxd4 {[%clk 0:01:11]} 36. Ke2 {[%clk 0:00:01]}  Rd1 {[%clk 0:01:11]} 0-1


[Site "https://www.chess.com"]

[Event "Titled Tuesday Blitz August 23 Late 2022"]
[White "Odegov, Artem"]
[Black "Rustemov, Alexander"]
[WhiteFideId "34183644"]
[BlackFideId "4119002"]
[WhiteElo "2286"]
[BlackElo "2751"]
[Result "1-0"]
[Round "06"]
[TimeControl "180+1"]
[Date "2022.08.23"]
[WhiteClock "0:00:04"]
[BlackClock "0:00:01"]

1. d4 {[%clk 0:03:00]}  g6 {[%clk 0:02:59]} 2. c4 {[%clk 0:02:56]}  Bg7 {[%clk 0:02:59]} 3. h4 {[%clk 0:02:55]}  c5 {[%clk 0:02:58]} 4. d5 {[%clk 0:02:55]}  Nf6 {[%clk 0:02:58]} 5. Nc3 {[%clk 0:02:54]}  d6 {[%clk 0:02:57]} 6. e4 {[%clk 0:02:53]}  e6 {[%clk 0:02:57]} 7. Nf3 {[%clk 0:02:51]}  exd5 {[%clk 0:02:56]} 8. cxd5 {[%clk 0:02:51]}  O-O {[%clk 0:02:56]} 9. Be2 {[%clk 0:02:50]}  Re8 {[%clk 0:02:56]} 10. Nd2 {[%clk 0:02:51]}  Na6 {[%clk 0:02:45]} 11. h5 {[%clk 0:02:47]}  Nc7 {[%clk 0:02:43]} 12. h6 {[%clk 0:02:46]}  Bh8 {[%clk 0:02:41]} 13. a4 {[%clk 0:02:46]}  b6 {[%clk 0:02:38]} 14. f3 {[%clk 0:02:44]}  Nd7 {[%clk 0:02:26]} 15. Nc4 {[%clk 0:02:30]}  Ne5 {[%clk 0:02:25]} 16. Bf4 {[%clk 0:02:28]}  Ba6 {[%clk 0:02:21]} 17. Nxe5 {[%clk 0:01:45]}  Bxe5 {[%clk 0:02:21]} 18. Bxe5 {[%clk 0:01:43]}  Rxe5 {[%clk 0:02:20]} 19. f4 {[%clk 0:01:42]}  Re8 {[%clk 0:02:12]} 20. Bxa6 {[%clk 0:01:27]}  Nxa6 {[%clk 0:02:11]} 21. Qe2 {[%clk 0:01:26]}  Nb4 {[%clk 0:02:09]} 22. O-O {[%clk 0:01:26]}  Qh4 {[%clk 0:02:01]} 23. e5 {[%clk 0:01:22]}  dxe5 {[%clk 0:01:51]} 24. Rae1 {[%clk 0:01:08]}  e4 {[%clk 0:01:21]} 25. Nxe4 {[%clk 0:00:33]}  f5 {[%clk 0:01:20]} 26. g3 {[%clk 0:00:21]}  Qd8 {[%clk 0:01:13]} 27. Qc4 {[%clk 0:00:19]}  fxe4 {[%clk 0:00:39]} 28. d6+ {[%clk 0:00:18]}  Kf8 {[%clk 0:00:38]} 29. Qc3 {[%clk 0:00:18]}  Kf7 {[%clk 0:00:13]} 30. f5 {[%clk 0:00:06]}  gxf5 {[%clk 0:00:02]} 31. Rxf5+ {[%clk 0:00:05]}  Ke6 {[%clk 0:00:02]} 32. Rxe4+ {[%clk 0:00:04]}  Kd7 {[%clk 0:00:02]} 33. Rf7+ {[%clk 0:00:03]}  Kc6 {[%clk 0:00:02]} 34. Qf3 {[%clk 0:00:03]}  Nd5 {[%clk 0:00:01]} 35. Ref4 {[%clk 0:00:02]}  Qxd6 {[%clk 0:00:01]} 36. R4f5 {[%clk 0:00:03]}  Re6 {[%clk 0:00:01]} 37. R7f6 {[%clk 0:00:04]}  Rae8 {[%clk 0:00:01]} 38. Rf7 {[%clk 0:00:04]}  Re3 {[%clk 0:00:01]} 39. Kg2 {[%clk 0:00:04]} 1-0


[Site "https://www.chess.com"]

[Event "Titled Tuesday Blitz August 23 Late 2022"]
[White "Sarana, Alexey"]
[Black "Xiong, Jeffery"]
[WhiteFideId "24133795"]
[BlackFideId "2047640"]
[WhiteElo "2666"]
[BlackElo "2714"]
[Result "0-1"]
[Round "06"]
[TimeControl "180+1"]
[Date "2022.08.23"]
[WhiteClock "0:00:03"]
[BlackClock "0:00:49"]

1. c4 {[%clk 0:02:56]}  e5 {[%clk 0:02:58]} 2. Nc3 {[%clk 0:02:56]}  d6 {[%clk 0:02:57]} 3. g3 {[%clk 0:02:55]}  f5 {[%clk 0:02:57]} 4. Bg2 {[%clk 0:02:55]}  Be7 {[%clk 0:02:58]} 5. Nf3 {[%clk 0:02:56]}  Nf6 {[%clk 0:02:58]} 6. O-O {[%clk 0:02:56]}  O-O {[%clk 0:02:58]} 7. b4 {[%clk 0:02:57]}  a6 {[%clk 0:02:54]} 8. d3 {[%clk 0:02:52]}  Qe8 {[%clk 0:02:54]} 9. e3 {[%clk 0:02:48]}  Nc6 {[%clk 0:02:50]} 10. Rb1 {[%clk 0:02:42]}  Kh8 {[%clk 0:02:49]} 11. a4 {[%clk 0:02:39]}  Qh5 {[%clk 0:02:30]} 12. b5 {[%clk 0:02:38]}  Nd8 {[%clk 0:02:30]} 13. Nd2 {[%clk 0:02:26]}  Qg6 {[%clk 0:02:30]} 14. f4 {[%clk 0:02:24]}  axb5 {[%clk 0:02:30]} 15. axb5 {[%clk 0:02:22]}  Ng4 {[%clk 0:02:07]} 16. Nf3 {[%clk 0:02:20]}  c6 {[%clk 0:02:07]} 17. bxc6 {[%clk 0:02:15]}  bxc6 {[%clk 0:02:08]} 18. h3 {[%clk 0:01:58]}  Nh6 {[%clk 0:02:08]} 19. fxe5 {[%clk 0:01:59]}  dxe5 {[%clk 0:02:04]} 20. Nxe5 {[%clk 0:01:57]}  Qxg3 {[%clk 0:02:04]} 21. d4 {[%clk 0:01:58]}  Bd6 {[%clk 0:01:36]} 22. Ne2 {[%clk 0:01:54]}  Qh4 {[%clk 0:01:36]} 23. Qe1 {[%clk 0:01:28]}  Qe7 {[%clk 0:01:28]} 24. Nxc6 {[%clk 0:01:22]}  Nxc6 {[%clk 0:01:28]} 25. Bxc6 {[%clk 0:01:23]}  Ra2 {[%clk 0:01:29]} 26. Bg2 {[%clk 0:01:16]}  Ba6 {[%clk 0:01:06]} 27. Bd5 {[%clk 0:00:55]}  Qg5+ {[%clk 0:01:06]} 28. Kh1 {[%clk 0:00:47]}  Qh5 {[%clk 0:01:07]} 29. Rf3 {[%clk 0:00:47]}  Bxc4 {[%clk 0:01:06]} 30. Bxc4 {[%clk 0:00:34]}  Qxf3+ {[%clk 0:01:06]} 31. Kg1 {[%clk 0:00:35]}  Qxh3 {[%clk 0:01:06]} 32. Qf2 {[%clk 0:00:27]}  Rf6 {[%clk 0:00:58]} 33. Nf4 {[%clk 0:00:06]}  Qg4+ {[%clk 0:00:57]} 34. Ng2 {[%clk 0:00:02]}  Rxf2 {[%clk 0:00:55]} 35. Kxf2 {[%clk 0:00:03]}  Qg3+ {[%clk 0:00:49]} 0-1


[Site "https://www.chess.com"]

[Event "Titled Tuesday Blitz August 23 Late 2022"]
[White "Sjugirov, Sanan"]
[Black "Yurovskykh, Oleksandr"]
[WhiteFideId "4189302"]
[BlackFideId "14134020"]
[WhiteElo "2609"]
[BlackElo "2292"]
[Result "0-1"]
[Round "06"]
[TimeControl "180+1"]
[Date "2022.08.23"]
[WhiteClock "0:00:13"]
[BlackClock "0:00:04"]

1. e4 {[%clk 0:03:00]}  d5 {[%clk 0:02:58]} 2. exd5 {[%clk 0:03:00]}  Qxd5 {[%clk 0:02:59]} 3. Nc3 {[%clk 0:03:00]}  Qd8 {[%clk 0:02:59]} 4. d4 {[%clk 0:03:00]}  Nf6 {[%clk 0:03:00]} 5. Nf3 {[%clk 0:03:00]}  Bg4 {[%clk 0:03:00]} 6. h3 {[%clk 0:02:55]}  Bxf3 {[%clk 0:03:00]} 7. Qxf3 {[%clk 0:02:55]}  c6 {[%clk 0:03:01]} 8. Be3 {[%clk 0:02:53]}  e6 {[%clk 0:03:01]} 9. O-O-O {[%clk 0:02:53]}  Bb4 {[%clk 0:03:01]} 10. Ne4 {[%clk 0:02:51]}  Nxe4 {[%clk 0:03:02]} 11. Qxe4 {[%clk 0:02:52]}  Qd5 {[%clk 0:03:02]} 12. Qxd5 {[%clk 0:02:50]}  cxd5 {[%clk 0:03:03]} 13. c4 {[%clk 0:02:43]}  dxc4 {[%clk 0:03:04]} 14. Bxc4 {[%clk 0:02:41]}  Nd7 {[%clk 0:02:58]} 15. Kb1 {[%clk 0:02:38]}  Nb6 {[%clk 0:02:51]} 16. Bb3 {[%clk 0:02:17]}  O-O-O {[%clk 0:02:47]} 17. d5 {[%clk 0:02:12]}  exd5 {[%clk 0:02:44]} 18. a3 {[%clk 0:01:51]}  Be7 {[%clk 0:02:34]} 19. Rhe1 {[%clk 0:01:47]}  Bd6 {[%clk 0:01:37]} 20. Bxb6 {[%clk 0:01:22]}  axb6 {[%clk 0:01:37]} 21. Bxd5 {[%clk 0:01:23]}  f6 {[%clk 0:01:27]} 22. b4 {[%clk 0:01:21]}  Kb8 {[%clk 0:01:13]} 23. Kc2 {[%clk 0:01:19]}  Rd7 {[%clk 0:01:03]} 24. Be6 {[%clk 0:01:16]}  Rc7+ {[%clk 0:01:02]} 25. Kb3 {[%clk 0:01:16]}  Be7 {[%clk 0:00:59]} 26. Bd7 {[%clk 0:01:10]}  Bd8 {[%clk 0:00:53]} 27. Rd3 {[%clk 0:01:02]}  g6 {[%clk 0:00:50]} 28. Re2 {[%clk 0:00:58]}  f5 {[%clk 0:00:51]} 29. Ka4 {[%clk 0:00:56]}  Bf6 {[%clk 0:00:36]} 30. Re6 {[%clk 0:00:54]}  Bg5 {[%clk 0:00:34]} 31. Bb5 {[%clk 0:00:50]}  Ka7 {[%clk 0:00:24]} 32. g3 {[%clk 0:00:49]}  Rd8 {[%clk 0:00:19]} 33. Rxd8 {[%clk 0:00:47]}  Bxd8 {[%clk 0:00:20]} 34. h4 {[%clk 0:00:41]}  Re7 {[%clk 0:00:20]} 35. Rd6 {[%clk 0:00:41]}  Bc7 {[%clk 0:00:20]} 36. Rd2 {[%clk 0:00:38]}  Be5 {[%clk 0:00:21]} 37. Bc4 {[%clk 0:00:33]}  Rc7 {[%clk 0:00:19]} 38. Kb5 {[%clk 0:00:33]}  f4 {[%clk 0:00:18]} 39. g4 {[%clk 0:00:28]}  Bf6 {[%clk 0:00:18]} 40. g5 {[%clk 0:00:27]}  Be5 {[%clk 0:00:18]} 41. a4 {[%clk 0:00:26]}  Re7 {[%clk 0:00:18]} 42. Re2 {[%clk 0:00:23]}  f3 {[%clk 0:00:11]} 43. Re3 {[%clk 0:00:22]}  Bd6 {[%clk 0:00:10]} 44. Rxe7 {[%clk 0:00:20]}  Bxe7 {[%clk 0:00:11]} 45. Bd5 {[%clk 0:00:17]}  Bf8 {[%clk 0:00:08]} 46. Bxf3 {[%clk 0:00:17]}  h6 {[%clk 0:00:08]} 47. gxh6 {[%clk 0:00:14]}  Bxh6 {[%clk 0:00:08]} 48. Be4 {[%clk 0:00:14]}  Bd2 {[%clk 0:00:02]} 49. Bxg6 {[%clk 0:00:13]}  Be1 {[%clk 0:00:03]} 50. h5 {[%clk 0:00:14]}  Bxf2 {[%clk 0:00:03]} 51. h6 {[%clk 0:00:14]}  Bd4 {[%clk 0:00:03]} 52. Kc4 {[%clk 0:00:13]}  Bb2 {[%clk 0:00:03]} 53. Kd5 {[%clk 0:00:13]}  Kb8 {[%clk 0:00:04]} 0-1


[Site "https://www.chess.com"]

[Event "Titled Tuesday Blitz August 23 Late 2022"]
[White "Tari, Aryan"]
[Black "Shirov, Alexei"]
[WhiteFideId "1510045"]
[BlackFideId "2209390"]
[WhiteElo "2612"]
[BlackElo "2678"]
[Result "0-1"]
[Round "06"]
[TimeControl "180+1"]
[Date "2022.08.23"]
[WhiteClock "0:00:03"]
[BlackClock "0:00:09"]

1. e4 {[%clk 0:03:00]}  e5 {[%clk 0:02:59]} 2. Nf3 {[%clk 0:02:59]}  Nc6 {[%clk 0:02:59]} 3. Bc4 {[%clk 0:02:54]}  Nf6 {[%clk 0:02:57]} 4. d3 {[%clk 0:02:52]}  Bc5 {[%clk 0:02:56]} 5. c3 {[%clk 0:02:39]}  O-O {[%clk 0:02:54]} 6. O-O {[%clk 0:02:39]}  d5 {[%clk 0:02:54]} 7. exd5 {[%clk 0:02:35]}  Nxd5 {[%clk 0:02:54]} 8. Re1 {[%clk 0:02:30]}  Bg4 {[%clk 0:02:52]} 9. Nbd2 {[%clk 0:02:29]}  Nb6 {[%clk 0:02:48]} 10. h3 {[%clk 0:02:29]}  Bh5 {[%clk 0:02:47]} 11. Bb3 {[%clk 0:02:26]}  Qxd3 {[%clk 0:02:44]} 12. Nxe5 {[%clk 0:02:26]}  Qf5 {[%clk 0:02:43]} 13. Nef3 {[%clk 0:02:24]}  Rad8 {[%clk 0:02:41]} 14. Qe2 {[%clk 0:02:22]}  Nd5 {[%clk 0:02:40]} 15. Ne4 {[%clk 0:02:17]}  Bxf3 {[%clk 0:02:39]} 16. Qxf3 {[%clk 0:02:17]}  Qxf3 {[%clk 0:02:38]} 17. gxf3 {[%clk 0:02:18]}  Bb6 {[%clk 0:02:32]} 18. a4 {[%clk 0:02:18]}  a6 {[%clk 0:02:07]} 19. Bg5 {[%clk 0:02:15]}  Nde7 {[%clk 0:01:49]} 20. Rad1 {[%clk 0:01:25]}  h6 {[%clk 0:01:21]} 21. Rxd8 {[%clk 0:01:10]}  Rxd8 {[%clk 0:01:17]} 22. Bxe7 {[%clk 0:01:09]}  Nxe7 {[%clk 0:01:15]} 23. a5 {[%clk 0:01:09]}  Ba7 {[%clk 0:00:59]} 24. Nf6+ {[%clk 0:01:09]}  Kf8 {[%clk 0:00:56]} 25. Ne4 {[%clk 0:01:08]}  Ng6 {[%clk 0:00:53]} 26. Kg2 {[%clk 0:00:47]}  Nf4+ {[%clk 0:00:52]} 27. Kg3 {[%clk 0:00:47]}  g5 {[%clk 0:00:51]} 28. h4 {[%clk 0:00:46]}  f5 {[%clk 0:00:44]} 29. Nf6 {[%clk 0:00:37]}  Rd2 {[%clk 0:00:39]} 30. Nh7+ {[%clk 0:00:31]}  Kg7 {[%clk 0:00:39]} 31. Re7+ {[%clk 0:00:30]}  Kg6 {[%clk 0:00:36]} 32. hxg5 {[%clk 0:00:18]}  hxg5 {[%clk 0:00:31]} 33. Rd7 {[%clk 0:00:07]}  Bxf2+ {[%clk 0:00:27]} 34. Kh2 {[%clk 0:00:07]}  Bg3+ {[%clk 0:00:22]} 35. Kh1 {[%clk 0:00:05]}  Rxb2 {[%clk 0:00:20]} 36. Nf8+ {[%clk 0:00:05]}  Kf6 {[%clk 0:00:19]} 37. Rf7+ {[%clk 0:00:05]}  Ke5 {[%clk 0:00:19]} 38. Re7+ {[%clk 0:00:03]}  Kd6 {[%clk 0:00:19]} 39. Rd7+ {[%clk 0:00:04]}  Kc6 {[%clk 0:00:17]} 40. Ba4+ {[%clk 0:00:04]}  b5 {[%clk 0:00:17]} 41. axb6+ {[%clk 0:00:04]}  Kxb6 {[%clk 0:00:17]} 42. Rd1 {[%clk 0:00:03]}  Rh2+ {[%clk 0:00:16]} 43. Kg1 {[%clk 0:00:04]}  Nh3+ {[%clk 0:00:14]} 44. Kf1 {[%clk 0:00:04]}  Rf2+ {[%clk 0:00:14]} 45. Ke1 {[%clk 0:00:05]}  Rh2+ {[%clk 0:00:13]} 46. Kf1 {[%clk 0:00:05]}  Nf4 {[%clk 0:00:13]} 47. Rb1+ {[%clk 0:00:02]}  Ka5 {[%clk 0:00:12]} 48. Kg1 {[%clk 0:00:02]}  Kxa4 {[%clk 0:00:12]} 49. Nd7 {[%clk 0:00:01]}  Ka3 {[%clk 0:00:12]} 50. Nc5 {[%clk 0:00:02]}  Rg2+ {[%clk 0:00:10]} 51. Kf1 {[%clk 0:00:02]}  Rf2+ {[%clk 0:00:10]} 52. Kg1 {[%clk 0:00:02]}  Nh3+ {[%clk 0:00:09]} 53. Kh1 {[%clk 0:00:03]}  Rh2# {[%clk 0:00:09]} 0-1


[Site "https://www.chess.com"]